fUST/lending_fUST_20250716
["ID","MTS","AMOUNT","RATE_DAILY","PERIOD"]
[372363886,1752613844020,-474.08,0.00020234,2]
[372363887,1752613844030,-460.0,0.00020234,2]
[372363888,1752613844039,-460.0,0.00020234,2]
[372363889,1752613844048,-476.21034506,0.00020234,2]
[372363890,1752613844058,-460.0,0.00020234,2]
[372363891,1752613844070,-460.0,0.00020234,2]
[372363892,1752613844080,-460.0,0.00020234,2]
[372363893,1752613844090,-1064.07,0.00020234,2]
[372363894,1752613844101,-460.0,0.00020234,2]
[372363895,1752613844111,-460.0,0.00020234,2]
[372363896,1752613844122,-460.0,0.00020234,2]
[372363897,1752613844132,-151.0,0.00020234,2]
[372363898,1752613844144,-738.27,0.00020234,2]
[372363899,1752613844154,-177.931516,0.00020234,2]
[372363900,1752613844163,-636.82,0.00020235,2]
[372363901,1752613844174,-636.82,0.00020235,2]
[372363902,1752613844185,-460.0,0.00020236,2]
[372363903,1752613844196,-151.0,0.00020236,2]
[372363904,1752613844206,-460.0,0.00020236,2]
[372363905,1752613844216,-460.0,0.00020236,2]
[372363906,1752613844227,-554.03,0.00020236,2]
[372363907,1752613844239,-460.0,0.00020236,2]
[372363908,1752613844250,-460.0,0.00020236,2]
[372363909,1752613844260,-460.0,0.00020236,2]
[372363910,1752613844270,-636.82,0.00020236,2]
[372363911,1752613844282,-636.82,0.00020237,2]
[372363912,1752613844292,-500.0,0.00020273,2]
[372363913,1752613844302,-500.0,0.00020273,2]
[372363914,1752613844311,-500.0,0.00020273,2]
[372363915,1752613844321,-503.58664453,0.00020273,2]
[372363916,1752613844331,-500.0,0.00020273,2]
[372363917,1752613844342,-172.73037819,0.00020273,2]
[372363918,1752613844353,-500.0,0.00020273,2]
[372363919,1752613844362,-500.0,0.00020273,2]
[372363920,1752613844372,-500.0,0.00020273,2]
[372363921,1752613844383,-500.0,0.00020273,2]
[372363922,1752613844395,-500.0,0.00020273,2]
[372363923,1752613844405,-500.0,0.00020273,2]
[372363924,1752613844415,-480.58236001,0.00020273,2]
[372363925,1752613844424,-500.0,0.00020273,2]
[372363926,1752613844434,-500.0,0.00020273,2]
[372363927,1752613844444,-500.0,0.00020273,2]
[372363928,1752613844455,-500.0,0.00020273,2]
[372363929,1752613844466,-500.0,0.00020273,2]
[372363930,1752613844477,-500.0,0.00020273,2]
[372363931,1752613844487,-500.0,0.00020273,2]
[372363932,1752613844497,-500.0,0.00020273,2]
[372363933,1752613844506,-505.50054643,0.00020273,2]
[372363934,1752613844604,-500.0,0.00020273,2]
[372363935,1752613844613,-434.03103832,0.00020273,2]
[372363936,1752613844623,-500.0,0.00020273,2]
[372363937,1752613844632,-151.0,0.00020273,2]
[372363938,1752613844641,-226.14886,0.00020273,2]
[372363939,1752613844651,-151.0,0.00020273,2]
[372363940,1752613844661,-151.0,0.00020458,2]
[372363941,1752613844670,-151.0,0.00020458,2]
[372363942,1752613844681,-151.0,0.00020458,2]
[372363943,1752613844690,-151.0,0.00020458,2]
[372363944,1752613844700,-210.929115,0.00020458,2]
[372363945,1752613844710,-395.080467,0.00020458,2]
[372363946,1752613844720,-395.080467,0.00020458,2]
[372363947,1752613844729,-395.080467,0.00020458,2]
[372363948,1752613844740,-395.080467,0.00020458,2]
[372363949,1752613844752,-151.0,0.00020458,2]
[372363950,1752613844761,-151.0,0.00020458,2]
[372363951,1752613844771,-151.0,0.00020458,2]
[372363952,1752613844780,-151.0,0.00020458,2]
[372363953,1752613844791,-8463.32171468,0.00020458,2]
[372363954,1752613844806,-15000.84944,0.00020458,2]
[372363955,1752613844818,-769.75509238,0.00020458,2]
[372363956,1752613844834,-766.07375294,0.00020458,2]
[372363957,1752613844844,-7570.05498372,0.00020458,2]
[372363958,1752613844856,-151.0,0.00020458,2]
[372363959,1752613844868,-151.0,0.00020458,2]
[372363960,1752613844877,-151.0,0.00020458,2]
[372363961,1752613844887,-151.0,0.00020458,2]
[372363962,1752613844896,-151.0,0.00020458,2]
[372363963,1752613844906,-151.0,0.00020458,2]
[372363964,1752613844915,-175.07056789,0.00020458,2]
[372363965,1752613844925,-151.0,0.00020458,2]
[372363966,1752613844934,-216.32083901,0.00020458,2]
[372363967,1752613844944,-252.61929863,0.00020458,2]
[372363968,1752613844955,-151.0,0.00020458,2]
[372363969,1752613844964,-151.0,0.00020458,2]
[372363970,1752613844974,-500.0,0.00020458,2]
[372363971,1752613844984,-151.0,0.00020458,2]
[372363972,1752613844993,-232.35956903,0.00020458,2]
[372363973,1752613845005,-267.64043097,0.00020458,2]
[372363974,1752613845014,-151.0,0.00020458,2]
[372363975,1752613845023,-151.0,0.00020458,2]
[372363976,1752613845033,-500.0,0.00020458,2]
[372363977,1752613845042,-151.0,0.00020458,2]
[372363978,1752613845052,-500.0,0.00020458,2]
[372363979,1752613845062,-151.0,0.00020458,2]
[372363980,1752613845071,-500.0,0.00020458,2]
[372363981,1752613845081,-500.0,0.00020458,2]
[372363982,1752613845091,-151.0,0.00020458,2]
[372363983,1752613845101,-500.0,0.00020458,2]
[372363984,1752613845110,-207.4,0.00020458,2]
[372363985,1752613845120,-500.0,0.00020458,2]
[372363986,1752613845130,-151.0,0.00020458,2]
[372363987,1752613845139,-500.0,0.00020458,2]
[372363988,1752613845149,-151.0,0.00020458,2]
[372363989,1752613845159,-500.0,0.00020458,2]
[372363990,1752613845169,-16.55638252,0.00020458,2]
[372363991,1752613845180,-483.44361748,0.00020458,2]
[372363992,1752613845189,-151.0,0.00020458,2]
[372363993,1752613845199,-500.0,0.00020458,2]
[372363994,1752613845209,-151.0,0.00020458,2]
[372363995,1752613845218,-170.5523034,0.00020458,2]
[372363996,1752613845231,-329.4476966,0.00020458,2]
[372363997,1752613845240,-488.4723059,0.00020458,2]
[372363998,1752613845252,-11.5276941,0.00020458,2]
[372363999,1752613845262,-151.0,0.00020458,2]
[372364000,1752613845272,-500.0,0.00020458,2]
[372364001,1752613845281,-500.0,0.00020458,2]
[372364002,1752613845291,-346.17986428,0.00020458,2]
[372364003,1752613845564,-460.0,0.00019957,2]
[372364004,1752613845575,-349.50768227,0.00019957,2]
[372364006,1752613845625,-150.49231773,0.00019957,2]
[372364007,1752613845635,-512.41814758,0.00019984,2]
[372364008,1752613845651,-460.0,0.00020231,2]
[372364009,1752613845660,-153.82013572,0.00020458,2]
[372364010,1752613845670,-250.27,0.00020463,2]
[372364011,1752613845683,-151.0,0.00020498,2]
[372364012,1752613845693,-243.287406,0.00020498,2]
[372364013,1752613845703,-243.287406,0.00020498,2]
[372364014,1752613845713,-243.287406,0.00020498,2]
[372364015,1752613845723,-243.287406,0.00020498,2]
[372364016,1752613845734,-151.0,0.00020498,2]
[372364018,1752613845744,-55.41558479,0.000205,3]
[372364023,1752613846347,-19643.47210006,0.00020229,2]
[372364024,1752613846407,-22265.3831218,0.00020229,2]
[372364025,1752613846417,-95.58441521,0.000205,3]
[372364026,1752613846427,-852.52,0.00020503,2]
[372364027,1752613846436,-1375.05,0.00020503,2]
[372364028,1752613846445,-460.0,0.00020503,2]
[372364029,1752613846454,-367.15050101,0.00020503,2]
[372364030,1752613846464,-460.0,0.00020503,2]
[372364031,1752613846473,-606.60184302,0.00020503,2]
[372364032,1752613846484,-460.0,0.00020503,2]
[372364033,1752613846493,-460.0,0.00020503,2]
[372364034,1752613846503,-1458.17,0.00020503,2]
[372364035,1752613846512,-460.0,0.00020503,2]
[372364036,1752613846522,-1286.18,0.00020503,2]
[372364037,1752613846531,-460.0,0.00020503,2]
[372364038,1752613846541,-460.0,0.00020503,2]
[372364039,1752613846551,-460.0,0.00020503,2]
[372364040,1752613846560,-460.0,0.00020503,2]
[372364041,1752613846570,-460.0,0.00020503,2]
[372364042,1752613846579,-460.0,0.00020503,2]
[372364043,1752613846588,-460.0,0.00020503,2]
[372364044,1752613846598,-1077.37,0.00020503,2]
[372364045,1752613846608,-460.0,0.00020503,2]
[372364046,1752613846617,-460.0,0.00020503,2]
[372364047,1752613846627,-460.0,0.00020503,2]
[372364048,1752613846636,-460.0,0.00020504,2]
[372364049,1752613846646,-460.0,0.00020504,2]
[372364050,1752613846656,-460.0,0.00020504,2]
[372364051,1752613846666,-460.0,0.00020504,2]
[372364052,1752613846676,-460.0,0.00020504,2]
[372364053,1752613846692,-460.0,0.00020504,2]
[372364054,1752613846702,-151.0,0.00020504,2]
[372364055,1752613846712,-460.0,0.00020504,2]
[372364056,1752613846722,-6358.93662561,0.00020505,2]
[372364057,1752613846736,-460.0,0.00020505,2]
[372364058,1752613846745,-460.0,0.00020505,2]
[372364059,1752613846756,-460.0,0.00020505,2]
[372364060,1752613846766,-151.30885179,0.00020505,2]
[372364061,1752613846776,-460.0,0.00020505,2]
[372364062,1752613846790,-468.28,0.00020505,2]
[372364063,1752613846799,-460.0,0.00020505,2]
[372364064,1752613846808,-401.83634997,0.00020505,2]
[372364065,1752613846818,-306.66,0.00020505,2]
[372364066,1752613846827,-460.0,0.00020505,2]
[372364067,1752613846847,-460.0,0.00020505,2]
[372364068,1752613846858,-460.0,0.00020505,2]
[372364069,1752613846868,-460.0,0.00020505,2]
[372364070,1752613846878,-460.0,0.00020505,2]
[372364071,1752613846889,-460.0,0.00020505,2]
[372364072,1752613846900,-460.0,0.00020505,2]
[372364073,1752613846909,-460.0,0.00020505,2]
[372364074,1752613846919,-527.04,0.00020505,2]
[372364075,1752613846929,-460.0,0.00020505,2]
[372364076,1752613846939,-460.0,0.00020505,2]
[372364077,1752613846949,-460.0,0.00020505,2]
[372364078,1752613846963,-460.0,0.00020505,2]
[372364079,1752613846974,-460.0,0.00020505,2]
[372364080,1752613846984,-151.0,0.00020505,2]
[372364081,1752613846994,-460.0,0.00020505,2]
[372364082,1752613847005,-460.0,0.00020505,2]
[372364083,1752613847016,-2276.08,0.00020505,2]
[372364084,1752613847026,-460.0,0.00020505,2]
[372364085,1752613847036,-460.0,0.00020505,2]
[372364086,1752613847046,-460.0,0.00020505,2]
[372364087,1752613847056,-460.0,0.00020505,2]
[372364088,1752613847067,-460.0,0.00020505,2]
[372364089,1752613847081,-722.12,0.00020505,2]
[372364090,1752613847093,-460.0,0.00020505,2]
[372364091,1752613847103,-460.0,0.00020506,2]
[372364092,1752613847113,-460.0,0.00020507,2]
[372364093,1752613847124,-414.5,0.00020507,2]
[372364094,1752613847134,-460.0,0.00020507,2]
[372364095,1752613847144,-232.11,0.00020507,2]
[372364096,1752613847154,-460.0,0.00020507,2]
[372364097,1752613847164,-460.0,0.00020507,2]
[372364098,1752613847173,-460.0,0.00020507,2]
[372364099,1752613847183,-460.0,0.00020507,2]
[372364100,1752613847193,-460.0,0.00020507,2]
[372364101,1752613847203,-460.0,0.00020507,2]
[372364102,1752613847213,-162.66753133,0.00020507,2]
[372364103,1752613847222,-460.0,0.00020507,2]
[372364104,1752613847232,-545.16,0.00020507,2]
[372364105,1752613847242,-460.0,0.00020507,2]
[372364106,1752613847253,-460.0,0.00020507,2]
[372364107,1752613847263,-460.0,0.00020507,2]
[372364108,1752613847397,-460.0,0.00020507,2]
[372364109,1752613847408,-460.0,0.00020507,2]
[372364110,1752613847418,-151.0,0.00020507,2]
[372364111,1752613847427,-460.0,0.00020507,2]
[372364112,1752613847437,-460.0,0.00020507,2]
[372364113,1752613847446,-460.0,0.00020507,2]
[372364114,1752613847456,-460.0,0.00020507,2]
[372364115,1752613847465,-215.69,0.00020507,2]
[372364116,1752613847475,-460.0,0.00020507,2]
[372364117,1752613847485,-460.0,0.00020507,2]
[372364118,1752613847494,-460.0,0.00020507,2]
[372364119,1752613847503,-460.0,0.00020507,2]
[372364120,1752613847512,-395.080467,0.00020507,2]
[372364121,1752613847522,-395.080467,0.00020507,2]
[372364122,1752613847531,-460.0,0.00020507,2]
[372364123,1752613847540,-460.0,0.00020507,2]
[372364124,1752613847550,-460.0,0.00020507,2]
[372364125,1752613847559,-151.0,0.00020507,2]
[372364126,1752613847568,-460.0,0.00020507,2]
[372364127,1752613847578,-460.0,0.00020507,2]
[372364128,1752613847587,-822.21,0.00020507,2]
[372364129,1752613847596,-460.0,0.00020507,2]
[372364130,1752613847606,-460.0,0.00020507,2]
[372364131,1752613847617,-460.0,0.00020507,2]
[372364132,1752613847627,-460.0,0.00020507,2]
[372364133,1752613847637,-298.13361043,0.00020507,2]
[372364134,1752613847647,-460.0,0.00020507,2]
[372364135,1752613847658,-460.0,0.00020507,2]
[372364136,1752613847667,-460.0,0.00020507,2]
[372364137,1752613847677,-151.0,0.00020507,2]
[372364138,1752613847690,-460.0,0.00020507,2]
[372364139,1752613847700,-636.82,0.00020507,2]
[372364140,1752613847710,-151.0,0.00020508,2]
[372364141,1752613847719,-243.287406,0.00020508,2]
[372364142,1752613847737,-243.287406,0.00020508,2]
[372364143,1752613847747,-460.0,0.00020508,2]
[372364144,1752613847757,-609.95,0.00020508,2]
[372364145,1752613847767,-460.0,0.00020508,2]
[372364146,1752613847777,-460.0,0.00020508,2]
[372364147,1752613847789,-460.0,0.00020508,2]
[372364148,1752613847804,-460.0,0.00020508,2]
[372364149,1752613847813,-395.080467,0.00020508,2]
[372364150,1752613847823,-395.080467,0.00020508,2]
[372364151,1752613847833,-460.0,0.00020508,2]
[372364152,1752613847842,-151.0,0.00020508,2]
[372364153,1752613847852,-460.0,0.00020508,2]
[372364154,1752613847862,-709.72,0.00020508,2]
[372364155,1752613847872,-474.08,0.00020508,2]
[372364156,1752613847882,-460.0,0.00020508,2]
[372364157,1752613847891,-460.0,0.00020508,2]
[372364158,1752613847901,-482.82,0.00020508,2]
[372364159,1752613847911,-460.0,0.00020508,2]
[372364160,1752613847920,-448.04133828,0.00020508,2]
[372364161,1752613847930,-1064.07,0.00020508,2]
[372364162,1752613847939,-460.0,0.00020508,2]
[372364163,1752613847949,-460.0,0.00020508,2]
[372364164,1752613847959,-460.0,0.00020508,2]
[372364165,1752613847969,-738.27,0.00020508,2]
[372364166,1752613847979,-467.47171774,0.00020509,2]
[372364167,1752613847988,-636.82,0.00020509,2]
[372364168,1752613847999,-636.82,0.00020509,2]
[372364169,1752613848009,-636.82,0.00020509,2]
[372364170,1752613848019,-636.82,0.00020509,2]
[372364171,1752613848029,-636.82,0.00020509,2]
[372364172,1752613848038,-637.02,0.00020509,2]
[372364173,1752613848048,-523.72184824,0.0002051,2]
[372364174,1752613848057,-460.0,0.0002051,2]
[372364175,1752613848067,-460.0,0.0002051,2]
[372364176,1752613848077,-418.61984751,0.0002051,2]
[372364177,1752613848086,-460.0,0.0002051,2]
[372364178,1752613848096,-2760.0,0.00020511,2]
[372364179,1752613848105,-500.0,0.00020573,2]
[372364180,1752613848115,-500.0,0.00020573,2]
[372364181,1752613848124,-500.0,0.00020573,2]
[372364182,1752613848135,-508.83432409,0.00020573,2]
[372364183,1752613848145,-207.11704758,0.00020573,2]
[372364184,1752613848155,-500.0,0.00020573,2]
[372364185,1752613848164,-500.7170249,0.00020573,2]
[372364186,1752613848174,-500.0,0.00020573,2]
[372364187,1752613848183,-500.0,0.00020573,2]
[372364188,1752613848193,-578.16123065,0.00020573,2]
[372364189,1752613848202,-500.0,0.00020573,2]
[372364190,1752613848211,-512.29254877,0.00020573,2]
[372364191,1752613848221,-500.0,0.00020573,2]
[372364192,1752613848230,-243.287406,0.00020573,2]
[372364193,1752613848239,-243.287406,0.00020573,2]
[372364194,1752613848249,-151.0,0.00020573,2]
[372364195,1752613848259,-12603.13032295,0.00020586,2]
[372364196,1752613848268,-227.0,0.00020589,2]
[372364197,1752613848277,-520.84375,0.00020591,2]
[372364198,1752613848288,-214.37129034,0.00020591,2]
[372364199,1752613848298,-160.0,0.00020591,2]
[372364200,1752613848309,-468.75,0.00020591,2]
[372364201,1752613848319,-838.84061749,0.00020593,2]
[372364202,1752613848329,-230.76969291,0.00020593,2]
[372364203,1752613848339,-160.0,0.00020593,2]
[372364204,1752613848349,-160.0,0.00020593,2]
[372364205,1752613848359,-160.0,0.00020593,2]
[372364206,1752613848369,-215.50840239,0.00020593,2]
[372364207,1752613848379,-395.080467,0.00020593,2]
[372364208,1752613848388,-395.080467,0.00020593,2]
[372364209,1752613848398,-292.650044,0.00020593,2]
[372364210,1752613848408,-178.77060941,0.00020648,2]
[372364211,1752613848418,-852.52,0.00020777,2]
[372364212,1752613848429,-1375.05,0.00020777,2]
[372364213,1752613848439,-460.0,0.00020777,2]
[372364214,1752613848448,-435.2613308,0.00020777,2]
[372364215,1752613848458,-460.0,0.00020777,2]
[372364216,1752613848467,-460.0,0.00020777,2]
[372364217,1752613848476,-1458.17,0.00020777,2]
[372364218,1752613848486,-460.0,0.00020777,2]
[372364219,1752613848496,-1286.18,0.00020777,2]
[372364220,1752613848505,-460.0,0.00020777,2]
[372364221,1752613848515,-586.2915561,0.00020777,2]
[372364222,1752613848524,-460.0,0.00020777,2]
[372364223,1752613848535,-460.0,0.00020777,2]
[372364224,1752613848544,-460.0,0.00020777,2]
[372364225,1752613848553,-460.0,0.00020777,2]
[372364226,1752613848563,-460.0,0.00020777,2]
[372364227,1752613848572,-1077.37,0.00020777,2]
[372364228,1752613848582,-460.0,0.00020777,2]
[372364229,1752613848592,-460.0,0.00020777,2]
[372364230,1752613848601,-460.0,0.00020777,2]
[372364231,1752613848611,-460.0,0.00020778,2]
[372364232,1752613848621,-390.34,0.00020778,2]
[372364233,1752613848630,-607.51015713,0.00020778,2]
[372364234,1752613848639,-460.0,0.00020778,2]
[372364235,1752613848649,-460.0,0.00020778,2]
[372364236,1752613848659,-460.0,0.00020778,2]
[372364237,1752613848668,-460.0,0.00020778,2]
[372364238,1752613848677,-460.0,0.00020779,2]
[372364239,1752613848690,-460.0,0.00020779,2]
[372364240,1752613848700,-460.0,0.00020779,2]
[372364241,1752613848709,-594.10854737,0.00020779,2]
[372364242,1752613848719,-460.0,0.00020779,2]
[372364243,1752613848731,-460.0,0.00020779,2]
[372364244,1752613848740,-388.59715214,0.00020779,2]
[372364245,1752613848750,-460.0,0.00020779,2]
[372364246,1752613848760,-460.0,0.00020779,2]
[372364247,1752613848770,-460.0,0.00020779,2]
[372364248,1752613848779,-460.0,0.00020779,2]
[372364249,1752613848789,-460.0,0.00020779,2]
[372364250,1752613848799,-527.04,0.00020779,2]
[372364251,1752613848808,-460.0,0.00020779,2]
[372364252,1752613848818,-460.0,0.00020779,2]
[372364253,1752613848828,-460.0,0.00020779,2]
[372364254,1752613848837,-460.0,0.00020779,2]
[372364255,1752613848847,-460.0,0.00020779,2]
[372364256,1752613848856,-460.0,0.00020779,2]
[372364257,1752613848866,-460.0,0.00020779,2]
[372364258,1752613848876,-2276.08,0.00020779,2]
[372364259,1752613848885,-460.0,0.00020779,2]
[372364260,1752613848895,-460.0,0.00020779,2]
[372364261,1752613848905,-460.0,0.00020779,2]
[372364262,1752613848915,-460.0,0.00020779,2]
[372364263,1752613848924,-722.12,0.00020779,2]
[372364264,1752613848934,-460.0,0.00020779,2]
[372364265,1752613848943,-169.64,0.00020781,2]
[372364266,1752613848953,-460.0,0.00020781,2]
[372364267,1752613848962,-243.287406,0.00020781,2]
[372364268,1752613848971,-243.287406,0.00020781,2]
[372364269,1752613848981,-244.4,0.00020781,2]
[372364270,1752613848990,-460.0,0.00020781,2]
[372364271,1752613849000,-460.0,0.00020781,2]
[372364272,1752613849010,-460.0,0.00020781,2]
[372364273,1752613849019,-460.0,0.00020781,2]
[372364274,1752613849029,-460.0,0.00020781,2]
[372364275,1752613849038,-460.0,0.00020781,2]
[372364276,1752613849048,-460.0,0.00020781,2]
[372364277,1752613849057,-460.0,0.00020781,2]
[372364278,1752613849067,-460.0,0.00020781,2]
[372364279,1752613849076,-460.0,0.00020781,2]
[372364280,1752613849086,-460.0,0.00020781,2]
[372364281,1752613849095,-460.0,0.00020781,2]
[372364282,1752613849104,-460.0,0.00020781,2]
[372364283,1752613849114,-460.0,0.00020781,2]
[372364284,1752613849124,-460.0,0.00020781,2]
[372364285,1752613849134,-460.0,0.00020781,2]
[372364286,1752613849145,-460.0,0.00020781,2]
[372364287,1752613849160,-395.080467,0.00020781,2]
[372364288,1752613849170,-395.080468,0.00020781,2]
[372364289,1752613849180,-460.0,0.00020781,2]
[372364290,1752613849189,-460.0,0.00020781,2]
[372364291,1752613849198,-460.0,0.00020781,2]
[372364292,1752613849208,-460.0,0.00020781,2]
[372364293,1752613849219,-460.0,0.00020781,2]
[372364294,1752613849228,-822.21,0.00020781,2]
[372364295,1752613849238,-315.75636852,0.00020781,2]
[372364296,1752613849249,-460.0,0.00020781,2]
[372364297,1752613849258,-460.0,0.00020781,2]
[372364298,1752613849268,-207.06735334,0.00020781,2]
[372364299,1752613849278,-460.0,0.00020781,2]
[372364300,1752613849287,-460.0,0.00020781,2]
[372364301,1752613849297,-460.0,0.00020782,2]
[372364302,1752613849307,-460.0,0.00020782,2]
[372364303,1752613849317,-460.0,0.00020782,2]
[372364304,1752613849327,-460.0,0.00020782,2]
[372364305,1752613849336,-214.77888614,0.00020782,2]
[372364306,1752613849347,-198.44837478,0.00020782,2]
[372364307,1752613849356,-460.0,0.00020782,2]
[372364308,1752613849367,-460.0,0.00020782,2]
[372364309,1752613849376,-709.72,0.00020782,2]
[372364310,1752613849386,-474.08,0.00020782,2]
[372364311,1752613849396,-460.0,0.00020782,2]
[372364312,1752613849409,-1064.07,0.00020782,2]
[372364313,1752613849418,-460.0,0.00020782,2]
[372364314,1752613849428,-738.27,0.00020782,2]
[372364315,1752613849442,-229.34223097,0.00020783,2]
[372364316,1752613849451,-460.0,0.00020784,2]
[372364317,1752613849461,-243.287406,0.00020784,2]
[372364318,1752613849471,-243.287406,0.00020784,2]
[372364319,1752613849481,-460.0,0.00020784,2]
[372364320,1752613849577,-460.0,0.00020784,2]
[372364321,1752613849587,-331.168,0.00020801,2]
[372364322,1752613849598,-658.4560049,0.00020821,2]
[372364323,1752613849607,-1000.0,0.00020821,2]
[372364324,1752613849617,-1000.0,0.00020821,2]
[372364325,1752613849626,-304.97620169,0.00020821,2]
[372364326,1752613849635,-173.82905292,0.00020821,2]
[372364327,1752613849645,-502.5197529,0.00020821,2]
[372364328,1752613849656,-500.0,0.00020821,2]
[372364329,1752613849666,-989.12516167,0.00020821,2]
[372364330,1752613849675,-1000.0,0.00020821,2]
[372364331,1752613849689,-1000.0,0.00020821,2]
[372364332,1752613849699,-457.80150943,0.00020821,2]
[372364333,1752613849709,-1000.0,0.00020821,2]
[372364334,1752613849719,-1000.0,0.00020821,2]
[372364335,1752613849729,-1000.0,0.00020821,2]
[372364336,1752613849739,-227.0,0.00020824,2]
[372364337,1752613849749,-500.0,0.00020888,2]
[372364338,1752613849760,-151.0,0.000209,4]
[372364339,1752613849770,-151.0,0.000209,3]
[372364340,1752613849779,-852.52,0.00021051,2]
[372364341,1752613849788,-1375.05,0.00021051,2]
[372364342,1752613849798,-460.0,0.00021051,2]
[372364343,1752613849807,-460.0,0.00021051,2]
[372364344,1752613849817,-460.0,0.00021051,2]
[372364345,1752613849827,-1458.17,0.00021051,2]
[372364346,1752613849836,-460.0,0.00021051,2]
[372364347,1752613849846,-1286.18,0.00021051,2]
[372364348,1752613849855,-460.0,0.00021051,2]
[372364349,1752613849865,-460.0,0.00021051,2]
[372364350,1752613849874,-460.0,0.00021051,2]
[372364351,1752613849884,-460.0,0.00021051,2]
[372364352,1752613849893,-460.0,0.00021051,2]
[372364353,1752613849904,-460.0,0.00021051,2]
[372364354,1752613849914,-1077.37,0.00021051,2]
[372364355,1752613849923,-460.0,0.00021051,2]
[372364356,1752613849933,-460.0,0.00021051,2]
[372364357,1752613849944,-460.0,0.00021051,2]
[372364358,1752613849954,-460.0,0.00021052,2]
[372364359,1752613849963,-400.68965166,0.00021052,2]
[372364360,1752613849974,-460.0,0.00021052,2]
[372364361,1752613849983,-460.0,0.00021052,2]
[372364362,1752613849993,-460.0,0.00021052,2]
[372364363,1752613850002,-243.287406,0.00021053,2]
[372364364,1752613850012,-243.287406,0.00021053,2]
[372364365,1752613850021,-460.0,0.00021053,2]
[372364366,1752613850030,-460.0,0.00021053,2]
[372364367,1752613850040,-460.0,0.00021053,2]
[372364368,1752613850049,-460.0,0.00021053,2]
[372364369,1752613850059,-460.0,0.00021053,2]
[372364370,1752613850069,-460.0,0.00021053,2]
[372364371,1752613850078,-460.0,0.00021053,2]
[372364372,1752613850088,-460.0,0.00021053,2]
[372364373,1752613850097,-460.0,0.00021053,2]
[372364374,1752613850107,-460.0,0.00021053,2]
[372364375,1752613850116,-527.04,0.00021053,2]
[372364376,1752613850126,-460.0,0.00021053,2]
[372364377,1752613850136,-460.0,0.00021053,2]
[372364378,1752613850145,-460.0,0.00021053,2]
[372364379,1752613850155,-460.0,0.00021053,2]
[372364380,1752613850165,-460.0,0.00021053,2]
[372364381,1752613850175,-460.0,0.00021053,2]
[372364382,1752613850185,-460.0,0.00021053,2]
[372364383,1752613850194,-2276.08,0.00021053,2]
[372364384,1752613850205,-460.0,0.00021053,2]
[372364385,1752613850214,-460.0,0.00021053,2]
[372364386,1752613850224,-460.0,0.00021053,2]
[372364387,1752613850234,-460.0,0.00021053,2]
[372364388,1752613850243,-722.12,0.00021053,2]
[372364389,1752613850253,-460.0,0.00021053,2]
[372364390,1752613850263,-460.0,0.00021055,2]
[372364391,1752613850272,-460.0,0.00021055,2]